Department family,Entity,Date,Expense type,Expense area,Supplier,Transaction number,Amount
Department of Health,Leicestershire Partnership NHS Trust,03/12/18,Med Trainees - FY1,Medical Trainees,UHL NHS TRUST (RWE),L0218705,26950.81
Department of Health,Leicestershire Partnership NHS Trust,03/12/18,NURSE - BAND 2 - AGENCY,AGNES UNIT POD 1,HCL NURSING,MAN28947,944.87
Department of Health,Leicestershire Partnership NHS Trust,03/12/18,NURSE - BAND 2 - AGENCY,Acacia (Willows),HCL NURSING,MAN28947,218.93
Department of Health,Leicestershire Partnership NHS Trust,03/12/18,Nurse - Band 6 -Agency,Adult City East CMHT - Merlyn Vaz,HCL NURSING,MAN28947,1764.99
Department of Health,Leicestershire Partnership NHS Trust,03/12/18,Nurse - Band 6 -Agency,Adult County Charnwood CMHT - Loughborough Base,HCL NURSING,MAN28947,2123.52
Department of Health,Leicestershire Partnership NHS Trust,03/12/18,NURSE - BAND 5 - AGENCY,Ashby Ward (Bradgate Unit),HCL NURSING,MAN28947,329.81
Department of Health,Leicestershire Partnership NHS Trust,03/12/18,NURSE - BAND 5 - AGENCY,Aston Ward (Bradgate Unit),HCL NURSING,MAN28947,3073.88
Department of Health,Leicestershire Partnership NHS Trust,03/12/18,NURSE - BAND 5 - AGENCY,Beaumont Ward - Bradgate Unit,HCL NURSING,MAN28947,370.38
Department of Health,Leicestershire Partnership NHS Trust,03/12/18,NURSE - BAND 2 - AGENCY,Belvoir Psychiatric Intensive Care Unit,HCL NURSING,MAN28947,1786.38
Department of Health,Leicestershire Partnership NHS Trust,03/12/18,NURSE - BAND 5 - AGENCY,Belvoir Psychiatric Intensive Care Unit,HCL NURSING,MAN28947,763.27
Department of Health,Leicestershire Partnership NHS Trust,03/12/18,NURSE - BAND 2 - AGENCY,Bosworth Ward - Bradgate Unit,HCL NURSING,MAN28947,167.10
Department of Health,Leicestershire Partnership NHS Trust,03/12/18,NURSE - BAND 5 - AGENCY,Bosworth Ward - Bradgate Unit,HCL NURSING,MAN28947,339.96
Department of Health,Leicestershire Partnership NHS Trust,03/12/18,NURSE - BAND 5 - AGENCY,Crisis Resolution,HCL NURSING,MAN28947,270.75
Department of Health,Leicestershire Partnership NHS Trust,03/12/18,Nurse - Band 6 -Agency,Crisis Resolution,HCL NURSING,MAN28947,8132.74
Department of Health,Leicestershire Partnership NHS Trust,03/12/18,Nurse - Band 6 -Agency,Deliberate Self Harm,HCL NURSING,MAN28947,1357.15
Department of Health,Leicestershire Partnership NHS Trust,03/12/18,NURSE - BAND 5 - AGENCY,Griffin Ward (HPC),HCL NURSING,MAN28947,1480.30
Department of Health,Leicestershire Partnership NHS Trust,03/12/18,NURSE - BAND 2 - AGENCY,Heather Ward,HCL NURSING,MAN28947,407.98
Department of Health,Leicestershire Partnership NHS Trust,03/12/18,NURSE - BAND 5 - AGENCY,Heather Ward,HCL NURSING,MAN28947,2337.47
Department of Health,Leicestershire Partnership NHS Trust,03/12/18,Nurse - Band 6 -Agency,Liason Psychiatry Service,HCL NURSING,MAN28947,4247.05
Department of Health,Leicestershire Partnership NHS Trust,03/12/18,NURSE - BAND 2 - AGENCY,Maple Ward,HCL NURSING,MAN28947,211.12
Department of Health,Leicestershire Partnership NHS Trust,03/12/18,NURSE - BAND 5 - AGENCY,Mill Lodge,HCL NURSING,MAN28947,-319.53
Department of Health,Leicestershire Partnership NHS Trust,03/12/18,NURSE - BAND 2 - AGENCY,Phoenix Ward (HPC),HCL NURSING,MAN28947,558.94
Department of Health,Leicestershire Partnership NHS Trust,03/12/18,NURSE - BAND 2 - AGENCY,Thornton Ward - Bradgate Unit,HCL NURSING,MAN28947,556.83
Department of Health,Leicestershire Partnership NHS Trust,03/12/18,NURSE - BAND 5 - AGENCY,Thornton Ward - Bradgate Unit,HCL NURSING,MAN28947,329.81
Department of Health,Leicestershire Partnership NHS Trust,03/12/18,NURSE - BAND 2 - AGENCY,Watermead Ward (Bradgate Unit),HCL NURSING,MAN28947,163.68
Department of Health,Leicestershire Partnership NHS Trust,03/12/18,NURSE - BAND 5 - AGENCY,Watermead Ward (Bradgate Unit),HCL NURSING,MAN28947,594.53
Department of Health,Leicestershire Partnership NHS Trust,03/12/18,Crs_NHS_LT1y -Resus Inventory Supplied.,Balance Sheet Collection,NHS SUPPLY CHAIN (ST1450),1019173044,39636.56
Department of Health,Leicestershire Partnership NHS Trust,03/12/18,WIP Project Not in BS - Buildings excl Dwellings,Work in Progress,INTERSERVE CONSTRUCTION LTD,VEM54887,31990.97
Department of Health,Leicestershire Partnership NHS Trust,03/12/18,Payroll Deductions -Salary Sacrifice Cars Scheme,Balance Sheet Collection,TUSKER,LPT801-1018,31603.02
Department of Health,Leicestershire Partnership NHS Trust,03/12/18,Contract : Accomodation,Out of County Income - Inpateints Project,TURNING POINT,SI-TPS-00020723,48353.83
Department of Health,Leicestershire Partnership NHS Trust,04/12/18,WIP Project Not in BS - Information Technology,Work in Progress,DELL COMPUTERS,7402486191,28911.60
Department of Health,Leicestershire Partnership NHS Trust,04/12/18,WIP Project Not in BS - Information Technology,Work in Progress,PHOENIX SOFTWARE LTD,OP/I831347,29775.60
Department of Health,Leicestershire Partnership NHS Trust,05/12/18,External Data Processing / Storage,Records & information Governance,C & V DATA MANAGEMENT SRV LTD,0065632,31114.77
Department of Health,Leicestershire Partnership NHS Trust,05/12/18,NURSE - BAND 2 - AGENCY,AGNES UNIT POD 1,HCL NURSING,MAN28742,289.94
Department of Health,Leicestershire Partnership NHS Trust,05/12/18,Nurse - Band 6 -Agency,Adult City East CMHT - Merlyn Vaz,HCL NURSING,MAN28742,2000.54
Department of Health,Leicestershire Partnership NHS Trust,05/12/18,Nurse - Band 6 -Agency,Adult County Charnwood CMHT - Loughborough Base,HCL NURSING,MAN28742,641.93
Department of Health,Leicestershire Partnership NHS Trust,05/12/18,Nurse - Band 6 -Agency,Adult County North West Leicestershire CMHT,HCL NURSING,MAN28742,1283.85
Department of Health,Leicestershire Partnership NHS Trust,05/12/18,NURSE - BAND 2 - AGENCY,Aston Ward (Bradgate Unit),HCL NURSING,MAN28742,254.97
Department of Health,Leicestershire Partnership NHS Trust,05/12/18,NURSE - BAND 5 - AGENCY,Aston Ward (Bradgate Unit),HCL NURSING,MAN28742,1504.02
Department of Health,Leicestershire Partnership NHS Trust,05/12/18,NURSE - BAND 2 - AGENCY,Belvoir Psychiatric Intensive Care Unit,HCL NURSING,MAN28742,2422.85
Department of Health,Leicestershire Partnership NHS Trust,05/12/18,NURSE - BAND 5 - AGENCY,Belvoir Psychiatric Intensive Care Unit,HCL NURSING,MAN28742,2029.59
Department of Health,Leicestershire Partnership NHS Trust,05/12/18,NURSE - BAND 2 - AGENCY,Bosworth Ward - Bradgate Unit,HCL NURSING,MAN28742,223.60
Department of Health,Leicestershire Partnership NHS Trust,05/12/18,NURSE - BAND 5 - AGENCY,Bosworth Ward - Bradgate Unit,HCL NURSING,MAN28742,329.81
Department of Health,Leicestershire Partnership NHS Trust,05/12/18,Nurse - Band 6 -Agency,Crisis Resolution,HCL NURSING,MAN28742,7940.98
Department of Health,Leicestershire Partnership NHS Trust,05/12/18,Nurse - Band 6 -Agency,Deliberate Self Harm,HCL NURSING,MAN28742,1758.69
Department of Health,Leicestershire Partnership NHS Trust,05/12/18,NURSE - BAND 5 - AGENCY,Griffin Ward (HPC),HCL NURSING,MAN28742,3624.70
Department of Health,Leicestershire Partnership NHS Trust,05/12/18,NURSE - BAND 2 - AGENCY,Heather Ward,HCL NURSING,MAN28742,370.26
Department of Health,Leicestershire Partnership NHS Trust,05/12/18,NURSE - BAND 5 - AGENCY,Heather Ward,HCL NURSING,MAN28742,1578.79
Department of Health,Leicestershire Partnership NHS Trust,05/12/18,Nurse - Band 6 -Agency,Mental Health Triage Team,HCL NURSING,MAN28742,1019.00
Department of Health,Leicestershire Partnership NHS Trust,05/12/18,NURSE - BAND 2 - AGENCY,Mill Lodge,HCL NURSING,MAN28742,1202.17
Department of Health,Leicestershire Partnership NHS Trust,05/12/18,NURSE - BAND 5 - AGENCY,Mill Lodge,HCL NURSING,MAN28742,1548.11
Department of Health,Leicestershire Partnership NHS Trust,05/12/18,NURSE - BAND 2 - AGENCY,Phoenix Ward (HPC),HCL NURSING,MAN28742,336.82
Department of Health,Leicestershire Partnership NHS Trust,05/12/18,NURSE - BAND 5 - AGENCY,Place Of Safety Assessment Unit,HCL NURSING,MAN28742,346.72
Department of Health,Leicestershire Partnership NHS Trust,05/12/18,NURSE - BAND 2 - AGENCY,Watermead Ward (Bradgate Unit),HCL NURSING,MAN28742,380.35
Department of Health,Leicestershire Partnership NHS Trust,05/12/18,NURSE - BAND 5 - AGENCY,Watermead Ward (Bradgate Unit),HCL NURSING,MAN28742,700.19
Department of Health,Leicestershire Partnership NHS Trust,05/12/18,Payroll Deductions -Home Electronics 29 Dec 18,Balance Sheet Collection,SME HCI LTD,129201,40790.10
Department of Health,Leicestershire Partnership NHS Trust,06/12/18,FP10'S,Adult City Drugs,NHS BUS SERVICES AUTHORITY,1000057989,10329.59
Department of Health,Leicestershire Partnership NHS Trust,06/12/18,FP10'S,Adult County Drugs,NHS BUS SERVICES AUTHORITY,1000057989,30492.90
Department of Health,Leicestershire Partnership NHS Trust,06/12/18,FP10'S,CAMHS County Outpatients,NHS BUS SERVICES AUTHORITY,1000057989,11569.12
Department of Health,Leicestershire Partnership NHS Trust,06/12/18,FP10'S,Children Services Medical,NHS BUS SERVICES AUTHORITY,1000057989,5123.47
Department of Health,Leicestershire Partnership NHS Trust,06/12/18,FP10'S,Dementia Related Drugs and Investigations,NHS BUS SERVICES AUTHORITY,1000057989,8015.75
Department of Health,Leicestershire Partnership NHS Trust,06/12/18,FP10'S,Eating Disorders Outpatient Service,NHS BUS SERVICES AUTHORITY,1000057989,991.64
Department of Health,Leicestershire Partnership NHS Trust,06/12/18,FP10'S,Leicestershire Psych-oncology Service,NHS BUS SERVICES AUTHORITY,1000057989,247.91
Department of Health,Leicestershire Partnership NHS Trust,06/12/18,FP10'S,PIER Team - Early Intervention Services,NHS BUS SERVICES AUTHORITY,1000057989,11817.03
Department of Health,Leicestershire Partnership NHS Trust,06/12/18,FP10'S,Pharmacy,NHS BUS SERVICES AUTHORITY,1000057989,743.73
Department of Health,Leicestershire Partnership NHS Trust,06/12/18,FP10'S,Snr Med Staff (Inc Med Reps),NHS BUS SERVICES AUTHORITY,1000057989,3305.46
Department of Health,Leicestershire Partnership NHS Trust,06/12/18,CHP Estates Management,Belgrave Health Centre (CHP),COMM HLTH PARTNERSHIPS LTD,0060091282,9041.24
Department of Health,Leicestershire Partnership NHS Trust,06/12/18,CHP Estates Management,Merlyn Vaz Centre (CHP),COMM HLTH PARTNERSHIPS LTD,0060091282,60957.31
Department of Health,Leicestershire Partnership NHS Trust,06/12/18,CHP Estates Management,Westcotes Health Centre (CHP),COMM HLTH PARTNERSHIPS LTD,0060091282,11563.20
Department of Health,Leicestershire Partnership NHS Trust,06/12/18,Occupational Health,HR Operations,UHL NHS TRUST (RWE),L0219134,26622.00
Department of Health,Leicestershire Partnership NHS Trust,06/12/18,Services / Recharges from NHS Trusts,Inter Unit I & E Distribution,UHL NHS TRUST (RWE),L0219140,179992.55
Department of Health,Leicestershire Partnership NHS Trust,07/12/18,Rent,Bridge Park Plaza - First Floor (LPT),RAYNSWAY PROPERTIES LTD,INV-0619,70816.80
Department of Health,Leicestershire Partnership NHS Trust,10/12/18,Crs_NHS_LT1y -Resus Inventory Supplied.,Balance Sheet Collection,NHS SUPPLY CHAIN (ST1450),1019179492,44052.22
Department of Health,Leicestershire Partnership NHS Trust,10/12/18,WIP Project Not in BS - Buildings excl Dwellings,Work in Progress,INTERSERVE CONSTRUCTION LTD,VEM54902,474599.04
Department of Health,Leicestershire Partnership NHS Trust,10/12/18,Internal Printing (machines and ink),Estates & Facilities Central,LEXMARK INTERNATIONAL LTD,900650005170,28853.02
Department of Health,Leicestershire Partnership NHS Trust,10/12/18,Network Costs - WAN Maint,HIS Infrastructure,VIRGIN MEDIA BUSINESS,262421-150,46565.94
Department of Health,Leicestershire Partnership NHS Trust,10/12/18,Payroll Deductions -Salary Sacrifice Cars Scheme,Balance Sheet Collection,TUSKER,10668,31005.16
Department of Health,Leicestershire Partnership NHS Trust,11/12/18,NURSE - BAND 2 - AGENCY,Beechwood Ward,HCL NURSING,MAN28962,336.82
Department of Health,Leicestershire Partnership NHS Trust,11/12/18,NURSE - BAND 5 - AGENCY,Beechwood Ward,HCL NURSING,MAN28962,600.67
Department of Health,Leicestershire Partnership NHS Trust,11/12/18,Nurse - Band 6 -Agency,City East CMHT MHSOP,HCL NURSING,MAN28962,1046.16
Department of Health,Leicestershire Partnership NHS Trust,11/12/18,NURSE - BAND 5 - AGENCY,City ICS,HCL NURSING,MAN28962,662.17
Department of Health,Leicestershire Partnership NHS Trust,11/12/18,NURSE - BAND 5 - AGENCY,City Planned Care - East,HCL NURSING,MAN28962,12705.90
Department of Health,Leicestershire Partnership NHS Trust,11/12/18,NURSE - BAND 5 - AGENCY,City Planned Care - West,HCL NURSING,MAN28962,2278.91
Department of Health,Leicestershire Partnership NHS Trust,11/12/18,Nurse - Band 6 -Agency,City West CMHT MHSOP,HCL NURSING,MAN28962,3162.21
Department of Health,Leicestershire Partnership NHS Trust,11/12/18,NURSE - BAND 2 - AGENCY,Clarendon Ward,HCL NURSING,MAN28962,168.41
Department of Health,Leicestershire Partnership NHS Trust,11/12/18,NURSE - BAND 5 - AGENCY,Clarendon Ward,HCL NURSING,MAN28962,1974.85
Department of Health,Leicestershire Partnership NHS Trust,11/12/18,NURSE - BAND 2 - AGENCY,Coalville Snibston Ward,HCL NURSING,MAN28962,1284.19
Department of Health,Leicestershire Partnership NHS Trust,11/12/18,NURSE - BAND 2 - AGENCY,Coalville Ward 2,HCL NURSING,MAN28962,2333.43
Department of Health,Leicestershire Partnership NHS Trust,11/12/18,NURSE - BAND 2 - AGENCY,Coleman Ward,HCL NURSING,MAN28962,559.22
Department of Health,Leicestershire Partnership NHS Trust,11/12/18,NURSE - BAND 2 - AGENCY,Dalgliesh Ward,HCL NURSING,MAN28962,1343.04
Department of Health,Leicestershire Partnership NHS Trust,11/12/18,NURSE - BAND 5 - AGENCY,Dalgliesh Ward,HCL NURSING,MAN28962,2339.76
Department of Health,Leicestershire Partnership NHS Trust,11/12/18,NURSE - BAND 3 - AGENCY,East Planned Care - Blaby/Lutterworth,HCL NURSING,MAN28962,1312.05
Department of Health,Leicestershire Partnership NHS Trust,11/12/18,NURSE - BAND 5 - AGENCY,"East Planned Care - Melton,Syston,Rutland",HCL NURSING,MAN28962,86.89
Department of Health,Leicestershire Partnership NHS Trust,11/12/18,NURSE - BAND 5 - AGENCY,"East Planned Care - Oadby,Wigston & Harborough",HCL NURSING,MAN28962,1019.34
Department of Health,Leicestershire Partnership NHS Trust,11/12/18,NURSE - BAND 5 - AGENCY,Evening Service,HCL NURSING,MAN28962,1047.38
Department of Health,Leicestershire Partnership NHS Trust,11/12/18,NURSE - BAND 2 - AGENCY,Fielding Palmer Nursing,HCL NURSING,MAN28962,754.43
Department of Health,Leicestershire Partnership NHS Trust,11/12/18,NURSE - BAND 5 - AGENCY,Fielding Palmer Nursing,HCL NURSING,MAN28962,2220.55
Department of Health,Leicestershire Partnership NHS Trust,11/12/18,NURSE - BAND 2 - AGENCY,Gwendolen Ward,HCL NURSING,MAN28962,374.88
Department of Health,Leicestershire Partnership NHS Trust,11/12/18,NURSE - BAND 5 - AGENCY,Gwendolen Ward,HCL NURSING,MAN28962,480.20
Department of Health,Leicestershire Partnership NHS Trust,11/12/18,NURSE - BAND 2 - AGENCY,H&B Comm Hosp East Ward,HCL NURSING,MAN28962,1583.52
Department of Health,Leicestershire Partnership NHS Trust,11/12/18,NURSE - BAND 5 - AGENCY,H&B Comm Hosp East Ward,HCL NURSING,MAN28962,1082.57
Department of Health,Leicestershire Partnership NHS Trust,11/12/18,NURSE - BAND 5 - AGENCY,H&B Comm Hosp North Ward,HCL NURSING,MAN28962,1343.78
Department of Health,Leicestershire Partnership NHS Trust,11/12/18,NURSE - BAND 5 - AGENCY,Lough Swithland Ward,HCL NURSING,MAN28962,2343.84
Department of Health,Leicestershire Partnership NHS Trust,11/12/18,NURSE - BAND 5 - AGENCY,North East ICS,HCL NURSING,MAN28962,942.25
Department of Health,Leicestershire Partnership NHS Trust,11/12/18,NURSE - BAND 5 - AGENCY,North West ICS,HCL NURSING,MAN28962,466.68
Department of Health,Leicestershire Partnership NHS Trust,11/12/18,NURSE - BAND 2 - AGENCY,Rutland Ward Nursing,HCL NURSING,MAN28962,106.77
Department of Health,Leicestershire Partnership NHS Trust,11/12/18,NURSE - BAND 5 - AGENCY,Rutland Ward Nursing,HCL NURSING,MAN28962,462.05
Department of Health,Leicestershire Partnership NHS Trust,11/12/18,NURSE - BAND 5 - AGENCY,South East ICS,HCL NURSING,MAN28962,3342.35
Department of Health,Leicestershire Partnership NHS Trust,11/12/18,NURSE - BAND 2 - AGENCY,St Lukes Stroke Ward,HCL NURSING,MAN28962,371.16
Department of Health,Leicestershire Partnership NHS Trust,11/12/18,NURSE - BAND 5 - AGENCY,St Lukes Stroke Ward,HCL NURSING,MAN28962,1017.27
Department of Health,Leicestershire Partnership NHS Trust,11/12/18,NURSE - BAND 2 - AGENCY,St Lukes Ward 3,HCL NURSING,MAN28962,211.93
Department of Health,Leicestershire Partnership NHS Trust,11/12/18,NURSE - BAND 5 - AGENCY,St Lukes Ward 3,HCL NURSING,MAN28962,2464.90
Department of Health,Leicestershire Partnership NHS Trust,11/12/18,NURSE - BAND 2 - AGENCY,Welford Ward,HCL NURSING,MAN28962,587.44
Department of Health,Leicestershire Partnership NHS Trust,11/12/18,NURSE - BAND 3 - AGENCY,West Planned Care  - Charnwood Hub,HCL NURSING,MAN28962,391.41
Department of Health,Leicestershire Partnership NHS Trust,11/12/18,NURSE - BAND 5 - AGENCY,West Planned Care  - Charnwood Hub,HCL NURSING,MAN28962,3115.66
Department of Health,Leicestershire Partnership NHS Trust,11/12/18,NURSE - BAND 2 - AGENCY,Beechwood Ward,HCL NURSING,MAN28897,1626.60
Department of Health,Leicestershire Partnership NHS Trust,11/12/18,NURSE - BAND 5 - AGENCY,Beechwood Ward,HCL NURSING,MAN28897,500.05
Department of Health,Leicestershire Partnership NHS Trust,11/12/18,Nurse - Band 6 -Agency,City East CMHT MHSOP,HCL NURSING,MAN28897,627.70
Department of Health,Leicestershire Partnership NHS Trust,11/12/18,NURSE - BAND 5 - AGENCY,City ICS,HCL NURSING,MAN28897,320.74
Department of Health,Leicestershire Partnership NHS Trust,11/12/18,NURSE - BAND 5 - AGENCY,City Planned Care - East,HCL NURSING,MAN28897,7439.25
Department of Health,Leicestershire Partnership NHS Trust,11/12/18,NURSE - BAND 5 - AGENCY,City Planned Care - West,HCL NURSING,MAN28897,2849.68
Department of Health,Leicestershire Partnership NHS Trust,11/12/18,Nurse - Band 6 -Agency,City West CMHT MHSOP,HCL NURSING,MAN28897,1069.88
Department of Health,Leicestershire Partnership NHS Trust,11/12/18,NURSE - BAND 5 - AGENCY,Clarendon Ward,HCL NURSING,MAN28897,2343.84
Department of Health,Leicestershire Partnership NHS Trust,11/12/18,NURSE - BAND 2 - AGENCY,Coalville Snibston Ward,HCL NURSING,MAN28897,353.88
Department of Health,Leicestershire Partnership NHS Trust,11/12/18,NURSE - BAND 5 - AGENCY,Coalville Snibston Ward,HCL NURSING,MAN28897,329.81
Department of Health,Leicestershire Partnership NHS Trust,11/12/18,NURSE - BAND 2 - AGENCY,Coalville Ward 2,HCL NURSING,MAN28897,1039.60
Department of Health,Leicestershire Partnership NHS Trust,11/12/18,NURSE - BAND 2 - AGENCY,Coleman Ward,HCL NURSING,MAN28897,905.33
Department of Health,Leicestershire Partnership NHS Trust,11/12/18,NURSE - BAND 5 - AGENCY,Dalgliesh Ward,HCL NURSING,MAN28897,1102.98
Department of Health,Leicestershire Partnership NHS Trust,11/12/18,NURSE - BAND 3 - AGENCY,East Planned Care - Blaby/Lutterworth,HCL NURSING,MAN28897,585.36
Department of Health,Leicestershire Partnership NHS Trust,11/12/18,NURSE - BAND 5 - AGENCY,"East Planned Care - Oadby,Wigston & Harborough",HCL NURSING,MAN28897,1250.79
Department of Health,Leicestershire Partnership NHS Trust,11/12/18,NURSE - BAND 5 - AGENCY,Evening Service,HCL NURSING,MAN28897,832.58
Department of Health,Leicestershire Partnership NHS Trust,11/12/18,NURSE - BAND 5 - AGENCY,Fielding Palmer Nursing,HCL NURSING,MAN28897,821.26
Department of Health,Leicestershire Partnership NHS Trust,11/12/18,NURSE - BAND 2 - AGENCY,Gwendolen Ward,HCL NURSING,MAN28897,947.32
Department of Health,Leicestershire Partnership NHS Trust,11/12/18,NURSE - BAND 2 - AGENCY,H&B Comm Hosp East Ward,HCL NURSING,MAN28897,1570.13
Department of Health,Leicestershire Partnership NHS Trust,11/12/18,NURSE - BAND 5 - AGENCY,H&B Comm Hosp East Ward,HCL NURSING,MAN28897,1380.02
Department of Health,Leicestershire Partnership NHS Trust,11/12/18,NURSE - BAND 2 - AGENCY,H&B Comm Hosp North Ward,HCL NURSING,MAN28897,109.19
Department of Health,Leicestershire Partnership NHS Trust,11/12/18,NURSE - BAND 5 - AGENCY,H&B Comm Hosp North Ward,HCL NURSING,MAN28897,274.41
Department of Health,Leicestershire Partnership NHS Trust,11/12/18,NURSE - BAND 2 - AGENCY,Kirby Ward,HCL NURSING,MAN28897,341.56
Department of Health,Leicestershire Partnership NHS Trust,11/12/18,NURSE - BAND 5 - AGENCY,Kirby Ward,HCL NURSING,MAN28897,931.39
Department of Health,Leicestershire Partnership NHS Trust,11/12/18,NURSE - BAND 2 - AGENCY,Lough Swithland Ward,HCL NURSING,MAN28897,211.93
Department of Health,Leicestershire Partnership NHS Trust,11/12/18,Nurse - Band 6 -Agency,MHSOP Integrated Care Team,HCL NURSING,MAN28897,2092.33
Department of Health,Leicestershire Partnership NHS Trust,11/12/18,NURSE - BAND 5 - AGENCY,North East ICS,HCL NURSING,MAN28897,1306.45
Department of Health,Leicestershire Partnership NHS Trust,11/12/18,NURSE - BAND 5 - AGENCY,North West ICS,HCL NURSING,MAN28897,673.49
Department of Health,Leicestershire Partnership NHS Trust,11/12/18,NURSE - BAND 2 - AGENCY,Rutland Ward Nursing,HCL NURSING,MAN28897,1018.71
Department of Health,Leicestershire Partnership NHS Trust,11/12/18,NURSE - BAND 5 - AGENCY,South East ICS,HCL NURSING,MAN28897,2366.46
Department of Health,Leicestershire Partnership NHS Trust,11/12/18,NURSE - BAND 2 - AGENCY,St Lukes Stroke Ward,HCL NURSING,MAN28897,325.17
Department of Health,Leicestershire Partnership NHS Trust,11/12/18,NURSE - BAND 5 - AGENCY,St Lukes Ward 3,HCL NURSING,MAN28897,1165.48
Department of Health,Leicestershire Partnership NHS Trust,11/12/18,NURSE - BAND 5 - AGENCY,Welford Ward,HCL NURSING,MAN28897,605.16
Department of Health,Leicestershire Partnership NHS Trust,11/12/18,NURSE - BAND 3 - AGENCY,West Planned Care  - Charnwood Hub,HCL NURSING,MAN28897,25.39
Department of Health,Leicestershire Partnership NHS Trust,11/12/18,NURSE - BAND 5 - AGENCY,West Planned Care  - Charnwood Hub,HCL NURSING,MAN28897,1407.95
Department of Health,Leicestershire Partnership NHS Trust,11/12/18,NURSE - BAND 2 - AGENCY,Beechwood Ward,HCL NURSING,MAN28948,2173.14
Department of Health,Leicestershire Partnership NHS Trust,11/12/18,NURSE - BAND 5 - AGENCY,Beechwood Ward,HCL NURSING,MAN28948,1249.63
Department of Health,Leicestershire Partnership NHS Trust,11/12/18,Nurse - Band 6 -Agency,City East CMHT MHSOP,HCL NURSING,MAN28948,1061.76
Department of Health,Leicestershire Partnership NHS Trust,11/12/18,NURSE - BAND 5 - AGENCY,City ICS,HCL NURSING,MAN28948,2817.25
Department of Health,Leicestershire Partnership NHS Trust,11/12/18,NURSE - BAND 5 - AGENCY,City Planned Care - East,HCL NURSING,MAN28948,8067.33
Department of Health,Leicestershire Partnership NHS Trust,11/12/18,NURSE - BAND 5 - AGENCY,City Planned Care - West,HCL NURSING,MAN28948,2072.42
Department of Health,Leicestershire Partnership NHS Trust,11/12/18,Nurse - Band 6 -Agency,City West CMHT MHSOP,HCL NURSING,MAN28948,1069.88
Department of Health,Leicestershire Partnership NHS Trust,11/12/18,NURSE - BAND 2 - AGENCY,Clarendon Ward,HCL NURSING,MAN28948,713.24
Department of Health,Leicestershire Partnership NHS Trust,11/12/18,NURSE - BAND 5 - AGENCY,Clarendon Ward,HCL NURSING,MAN28948,991.65
Department of Health,Leicestershire Partnership NHS Trust,11/12/18,NURSE - BAND 2 - AGENCY,Coalville Snibston Ward,HCL NURSING,MAN28948,1086.87
Department of Health,Leicestershire Partnership NHS Trust,11/12/18,NURSE - BAND 2 - AGENCY,Coalville Ward 2,HCL NURSING,MAN28948,737.41
Department of Health,Leicestershire Partnership NHS Trust,11/12/18,NURSE - BAND 2 - AGENCY,Coleman Ward,HCL NURSING,MAN28948,1168.10
Department of Health,Leicestershire Partnership NHS Trust,11/12/18,NURSE - BAND 5 - AGENCY,Coleman Ward,HCL NURSING,MAN28948,602.87
Department of Health,Leicestershire Partnership NHS Trust,11/12/18,NURSE - BAND 2 - AGENCY,Dalgliesh Ward,HCL NURSING,MAN28948,254.97
Department of Health,Leicestershire Partnership NHS Trust,11/12/18,NURSE - BAND 5 - AGENCY,Dalgliesh Ward,HCL NURSING,MAN28948,4288.39
Department of Health,Leicestershire Partnership NHS Trust,11/12/18,NURSE - BAND 3 - AGENCY,East Planned Care - Blaby/Lutterworth,HCL NURSING,MAN28948,910.04
Department of Health,Leicestershire Partnership NHS Trust,11/12/18,NURSE - BAND 5 - AGENCY,"East Planned Care - Melton,Syston,Rutland",HCL NURSING,MAN28948,194.00
Department of Health,Leicestershire Partnership NHS Trust,11/12/18,NURSE - BAND 5 - AGENCY,"East Planned Care - Oadby,Wigston & Harborough",HCL NURSING,MAN28948,1326.64
Department of Health,Leicestershire Partnership NHS Trust,11/12/18,NURSE - BAND 5 - AGENCY,Evening Service,HCL NURSING,MAN28948,840.64
Department of Health,Leicestershire Partnership NHS Trust,11/12/18,NURSE - BAND 5 - AGENCY,Fielding Palmer Nursing,HCL NURSING,MAN28948,1036.61
Department of Health,Leicestershire Partnership NHS Trust,11/12/18,NURSE - BAND 2 - AGENCY,Gwendolen Ward,HCL NURSING,MAN28948,225.95
Department of Health,Leicestershire Partnership NHS Trust,11/12/18,NURSE - BAND 2 - AGENCY,H&B Comm Hosp East Ward,HCL NURSING,MAN28948,1744.18
Department of Health,Leicestershire Partnership NHS Trust,11/12/18,NURSE - BAND 5 - AGENCY,H&B Comm Hosp East Ward,HCL NURSING,MAN28948,501.15
Department of Health,Leicestershire Partnership NHS Trust,11/12/18,NURSE - BAND 2 - AGENCY,H&B Comm Hosp North Ward,HCL NURSING,MAN28948,514.39
Department of Health,Leicestershire Partnership NHS Trust,11/12/18,NURSE - BAND 5 - AGENCY,H&B Comm Hosp North Ward,HCL NURSING,MAN28948,951.18
Department of Health,Leicestershire Partnership NHS Trust,11/12/18,NURSE - BAND 2 - AGENCY,Kirby Ward,HCL NURSING,MAN28948,317.79
Department of Health,Leicestershire Partnership NHS Trust,11/12/18,NURSE - BAND 5 - AGENCY,Lough Swithland Ward,HCL NURSING,MAN28948,383.19
Department of Health,Leicestershire Partnership NHS Trust,11/12/18,NURSE - BAND 5 - AGENCY,North East ICS,HCL NURSING,MAN28948,935.10
Department of Health,Leicestershire Partnership NHS Trust,11/12/18,NURSE - BAND 5 - AGENCY,North West ICS,HCL NURSING,MAN28948,862.83
Department of Health,Leicestershire Partnership NHS Trust,11/12/18,NURSE - BAND 2 - AGENCY,Rutland Ward Nursing,HCL NURSING,MAN28948,835.50
Department of Health,Leicestershire Partnership NHS Trust,11/12/18,NURSE - BAND 5 - AGENCY,Rutland Ward Nursing,HCL NURSING,MAN28948,257.33
Department of Health,Leicestershire Partnership NHS Trust,11/12/18,NURSE - BAND 5 - AGENCY,South East ICS,HCL NURSING,MAN28948,2910.03
Department of Health,Leicestershire Partnership NHS Trust,11/12/18,NURSE - BAND 2 - AGENCY,St Lukes Stroke Ward,HCL NURSING,MAN28948,261.16
Department of Health,Leicestershire Partnership NHS Trust,11/12/18,NURSE - BAND 5 - AGENCY,St Lukes Stroke Ward,HCL NURSING,MAN28948,962.94
Department of Health,Leicestershire Partnership NHS Trust,11/12/18,NURSE - BAND 5 - AGENCY,St Lukes Ward 3,HCL NURSING,MAN28948,382.70
Department of Health,Leicestershire Partnership NHS Trust,11/12/18,NURSE - BAND 2 - AGENCY,Welford Ward,HCL NURSING,MAN28948,600.10
Department of Health,Leicestershire Partnership NHS Trust,11/12/18,NURSE - BAND 3 - AGENCY,West Planned Care  - Charnwood Hub,HCL NURSING,MAN28948,363.67
Department of Health,Leicestershire Partnership NHS Trust,11/12/18,NURSE - BAND 5 - AGENCY,West Planned Care  - Charnwood Hub,HCL NURSING,MAN28948,755.12
Department of Health,Leicestershire Partnership NHS Trust,11/12/18,Payroll Deductions - Kiddi Vouchers,Balance Sheet Collection,WIDER PLAN LTD,4409621,43261.66
Department of Health,Leicestershire Partnership NHS Trust,13/12/18,UHL Facilities Management SLA,Estates Central Invoices To Recharge,UHL NHS TRUST (RWE),L0219338,827106.58
Department of Health,Leicestershire Partnership NHS Trust,13/12/18,UHL Facilities Management SLA,Estates Central Invoices To Recharge,UHL NHS TRUST (RWE),L0219337,827106.58
Department of Health,Leicestershire Partnership NHS Trust,14/12/18,CONSULTANT HONOURARY,CAMHS CITY TEAM,UNIVERSITY OF LEICESTER,2230106668,5986.15
Department of Health,Leicestershire Partnership NHS Trust,14/12/18,CONSULTANT HONOURARY,Medical Director - Hq Report,UNIVERSITY OF LEICESTER,2230106668,83314.85
Department of Health,Leicestershire Partnership NHS Trust,14/12/18,CONSULTANT,Medical Trainees,UNIVERSITY OF LEICESTER,2230106668,9631.50
Department of Health,Leicestershire Partnership NHS Trust,14/12/18,SPECIALITY TRAINING 4-6 (ST 4-6),Medical Trainees,UNIVERSITY OF LEICESTER,2230106668,13939.00
Department of Health,Leicestershire Partnership NHS Trust,14/12/18,PSYCHOLOGIST - BAND 8D,Psychology Students,UNIVERSITY OF LEICESTER,2230106668,1549.00
Department of Health,Leicestershire Partnership NHS Trust,14/12/18,CONSULTANT,Service Increment For Teaching Income (SIFT),UNIVERSITY OF LEICESTER,2230106668,9631.50
Department of Health,Leicestershire Partnership NHS Trust,14/12/18,Leased / Hired Vehicles,Assertive Outreach Services,AUTOMOTIVE LEASING LTD,504659553,10.00
Department of Health,Leicestershire Partnership NHS Trust,14/12/18,Leased / Hired Vehicles,Autism,AUTOMOTIVE LEASING LTD,504659553,638.96
Department of Health,Leicestershire Partnership NHS Trust,14/12/18,Prep_ LT1y -Prepayments Lease Cars,Balance Sheet Collection,AUTOMOTIVE LEASING LTD,504659553,47012.88
Department of Health,Leicestershire Partnership NHS Trust,14/12/18,Trade_Drs_LT1y -Charitable  Funds Contra Account,Balance Sheet Collection,AUTOMOTIVE LEASING LTD,504659553,30.00
Department of Health,Leicestershire Partnership NHS Trust,14/12/18,Trade_Drs_LT1y -Lease Cars Invoicing Contrl Ac.,Balance Sheet Collection,AUTOMOTIVE LEASING LTD,504659553,375.84
Department of Health,Leicestershire Partnership NHS Trust,14/12/18,Leased / Hired Vehicles,CAMHS County Outpatients,AUTOMOTIVE LEASING LTD,504659553,10.00
Department of Health,Leicestershire Partnership NHS Trust,14/12/18,Leased / Hired Vehicles,CAMHS Learning Disabilities,AUTOMOTIVE LEASING LTD,504659553,85.00
Department of Health,Leicestershire Partnership NHS Trust,14/12/18,Leased / Hired Vehicles,City North Leic HV Area 5,AUTOMOTIVE LEASING LTD,504659553,10.00
Department of Health,Leicestershire Partnership NHS Trust,14/12/18,Leased / Hired Vehicles,County 0-19 North West Leic HV,AUTOMOTIVE LEASING LTD,504659553,581.00
Department of Health,Leicestershire Partnership NHS Trust,14/12/18,Leased / Hired Vehicles,East Planned Care - Blaby/Lutterworth,AUTOMOTIVE LEASING LTD,504659553,732.41
Department of Health,Leicestershire Partnership NHS Trust,14/12/18,Leased / Hired Vehicles,Immunisation,AUTOMOTIVE LEASING LTD,504659553,1301.23
Department of Health,Leicestershire Partnership NHS Trust,14/12/18,Leased / Hired Vehicles,LD County Nursing,AUTOMOTIVE LEASING LTD,504659553,10.00
Department of Health,Leicestershire Partnership NHS Trust,14/12/18,Leased / Hired Vehicles,MHSOP Medical Staffing,AUTOMOTIVE LEASING LTD,504659553,15.00
Department of Health,Leicestershire Partnership NHS Trust,14/12/18,Leased / Hired Vehicles,PIER Team - Early Intervention Services,AUTOMOTIVE LEASING LTD,504659553,247.94
Department of Health,Leicestershire Partnership NHS Trust,14/12/18,Leased / Hired Vehicles,Productive Ward,AUTOMOTIVE LEASING LTD,504659553,737.64
Department of Health,Leicestershire Partnership NHS Trust,14/12/18,Leased / Hired Vehicles,South West ICS,AUTOMOTIVE LEASING LTD,504659553,127.00
Department of Health,Leicestershire Partnership NHS Trust,14/12/18,Leased / Hired Vehicles,Specialist Palliative Care,AUTOMOTIVE LEASING LTD,504659553,105.62
Department of Health,Leicestershire Partnership NHS Trust,14/12/18,Leased / Hired Vehicles,West Planned Care  - Hinckley Hub,AUTOMOTIVE LEASING LTD,504659553,106.48
Department of Health,Leicestershire Partnership NHS Trust,17/12/18,Crs_NHS_LT1y -Resus Inventory Supplied.,Balance Sheet Collection,NHS SUPPLY CHAIN (ST1450),1019184876,58795.66
Department of Health,Leicestershire Partnership NHS Trust,17/12/18,Med Trainees - FY1,Medical Trainees,UHL NHS TRUST (RWE),L0219419,26302.20
Department of Health,Leicestershire Partnership NHS Trust,17/12/18,Insurance Costs,Chief Executives Office,NHS LITIGATION AUTHORITY,SICX/00137000,85763.50
Department of Health,Leicestershire Partnership NHS Trust,18/12/18,Non NHS ECRs,Out of County Income - Inpateints Project,CYGNET HC LTD,WOK0074018,49116.00
Department of Health,Leicestershire Partnership NHS Trust,18/12/18,Non NHS ECRs,Out of County Income - Inpateints Project,CYGNET HC LTD,WOK0070537,49884.50
Department of Health,Leicestershire Partnership NHS Trust,18/12/18,Med GP Trainees,Medical Trainees,ST.HELENS & KNOWSLEY NHS TRUST,16780565,60000.00
Department of Health,Leicestershire Partnership NHS Trust,18/12/18,Nurse - Band 6 -Agency,Adult City East CMHT - Merlyn Vaz,HCL NURSING,MAN29007,1802.99
Department of Health,Leicestershire Partnership NHS Trust,18/12/18,Nurse - Band 6 -Agency,Adult County Charnwood CMHT - Loughborough Base,HCL NURSING,MAN29007,2083.96
Department of Health,Leicestershire Partnership NHS Trust,18/12/18,NURSE - BAND 2 - AGENCY,Agnes Unit Management,HCL NURSING,MAN29007,783.90
Department of Health,Leicestershire Partnership NHS Trust,18/12/18,NURSE - BAND 5 - AGENCY,Agnes Unit Management,HCL NURSING,MAN29007,287.92
Department of Health,Leicestershire Partnership NHS Trust,18/12/18,NURSE - BAND 2 - AGENCY,Aston Ward (Bradgate Unit),HCL NURSING,MAN29007,519.23
Department of Health,Leicestershire Partnership NHS Trust,18/12/18,NURSE - BAND 5 - AGENCY,Aston Ward (Bradgate Unit),HCL NURSING,MAN29007,1329.40
Department of Health,Leicestershire Partnership NHS Trust,18/12/18,NURSE - BAND 5 - AGENCY,Beaumont Ward - Bradgate Unit,HCL NURSING,MAN29007,1433.04
Department of Health,Leicestershire Partnership NHS Trust,18/12/18,NURSE - BAND 2 - AGENCY,Belvoir Psychiatric Intensive Care Unit,HCL NURSING,MAN29007,1101.77
Department of Health,Leicestershire Partnership NHS Trust,18/12/18,NURSE - BAND 5 - AGENCY,Belvoir Psychiatric Intensive Care Unit,HCL NURSING,MAN29007,392.89
Department of Health,Leicestershire Partnership NHS Trust,18/12/18,NURSE - BAND 5 - AGENCY,Bosworth Ward - Bradgate Unit,HCL NURSING,MAN29007,426.69
Department of Health,Leicestershire Partnership NHS Trust,18/12/18,NURSE - BAND 2 - AGENCY,Cedar (Willows),HCL NURSING,MAN29007,205.70
Department of Health,Leicestershire Partnership NHS Trust,18/12/18,Nurse - Band 6 -Agency,Crisis Resolution,HCL NURSING,MAN29007,1314.40
Department of Health,Leicestershire Partnership NHS Trust,18/12/18,Nurse - Band 6 -Agency,Deliberate Self Harm,HCL NURSING,MAN29007,2541.93
Department of Health,Leicestershire Partnership NHS Trust,18/12/18,NURSE - BAND 2 - AGENCY,Gillivers,HCL NURSING,MAN29007,176.94
Department of Health,Leicestershire Partnership NHS Trust,18/12/18,NURSE - BAND 5 - AGENCY,Griffin Ward (HPC),HCL NURSING,MAN29007,2402.56
Department of Health,Leicestershire Partnership NHS Trust,18/12/18,NURSE - BAND 2 - AGENCY,Heather Ward,HCL NURSING,MAN29007,584.04
Department of Health,Leicestershire Partnership NHS Trust,18/12/18,NURSE - BAND 5 - AGENCY,Heather Ward,HCL NURSING,MAN29007,3099.77
Department of Health,Leicestershire Partnership NHS Trust,18/12/18,Nurse - Band 6 -Agency,Liason Psychiatry Service,HCL NURSING,MAN29007,1069.88
Department of Health,Leicestershire Partnership NHS Trust,18/12/18,NURSE - BAND 2 - AGENCY,Mill Lodge,HCL NURSING,MAN29007,189.57
Department of Health,Leicestershire Partnership NHS Trust,18/12/18,NURSE - BAND 5 - AGENCY,Mill Lodge,HCL NURSING,MAN29007,1548.11
Department of Health,Leicestershire Partnership NHS Trust,18/12/18,NURSE - BAND 2 - AGENCY,Phoenix Ward (HPC),HCL NURSING,MAN29007,336.82
Department of Health,Leicestershire Partnership NHS Trust,18/12/18,NURSE - BAND 2 - AGENCY,Place Of Safety Assessment Unit,HCL NURSING,MAN29007,-111.38
Department of Health,Leicestershire Partnership NHS Trust,18/12/18,NURSE - BAND 2 - AGENCY,Sycamore (Willows),HCL NURSING,MAN29007,223.60
Department of Health,Leicestershire Partnership NHS Trust,18/12/18,NURSE - BAND 2 - AGENCY,Thornton Ward - Bradgate Unit,HCL NURSING,MAN29007,415.24
Department of Health,Leicestershire Partnership NHS Trust,18/12/18,NURSE - BAND 5 - AGENCY,Thornton Ward - Bradgate Unit,HCL NURSING,MAN29007,370.38
Department of Health,Leicestershire Partnership NHS Trust,18/12/18,NURSE - BAND 2 - AGENCY,Watermead Ward (Bradgate Unit),HCL NURSING,MAN29007,262.44
Department of Health,Leicestershire Partnership NHS Trust,18/12/18,NURSE - BAND 5 - AGENCY,Watermead Ward (Bradgate Unit),HCL NURSING,MAN29007,708.16
Department of Health,Leicestershire Partnership NHS Trust,18/12/18,NURSE - BAND 2 - AGENCY,AGNES UNIT POD 1,HCL NURSING,MAN28961,786.34
Department of Health,Leicestershire Partnership NHS Trust,18/12/18,Nurse - Band 6 -Agency,Adult City East CMHT - Merlyn Vaz,HCL NURSING,MAN28961,1724.87
Department of Health,Leicestershire Partnership NHS Trust,18/12/18,NURSE - BAND 2 - AGENCY,Agnes Unit Management,HCL NURSING,MAN28961,296.17
Department of Health,Leicestershire Partnership NHS Trust,18/12/18,NURSE - BAND 2 - AGENCY,Aston Ward (Bradgate Unit),HCL NURSING,MAN28961,209.51
Department of Health,Leicestershire Partnership NHS Trust,18/12/18,NURSE - BAND 5 - AGENCY,Aston Ward (Bradgate Unit),HCL NURSING,MAN28961,2742.15
Department of Health,Leicestershire Partnership NHS Trust,18/12/18,NURSE - BAND 5 - AGENCY,Beaumont Ward - Bradgate Unit,HCL NURSING,MAN28961,1406.92
Department of Health,Leicestershire Partnership NHS Trust,18/12/18,NURSE - BAND 2 - AGENCY,Belvoir Psychiatric Intensive Care Unit,HCL NURSING,MAN28961,4023.48
Department of Health,Leicestershire Partnership NHS Trust,18/12/18,NURSE - BAND 5 - AGENCY,Belvoir Psychiatric Intensive Care Unit,HCL NURSING,MAN28961,1437.93
Department of Health,Leicestershire Partnership NHS Trust,18/12/18,Nurse - Band 6 -Agency,Crisis Resolution,HCL NURSING,MAN28961,3282.22
Department of Health,Leicestershire Partnership NHS Trust,18/12/18,Nurse - Band 6 -Agency,Deliberate Self Harm,HCL NURSING,MAN28961,1522.93
Department of Health,Leicestershire Partnership NHS Trust,18/12/18,NURSE - BAND 2 - AGENCY,Griffin Ward (HPC),HCL NURSING,MAN28961,313.19
Department of Health,Leicestershire Partnership NHS Trust,18/12/18,NURSE - BAND 5 - AGENCY,Griffin Ward (HPC),HCL NURSING,MAN28961,2184.92
Department of Health,Leicestershire Partnership NHS Trust,18/12/18,NURSE - BAND 5 - AGENCY,Heather Ward,HCL NURSING,MAN28961,2619.38
Department of Health,Leicestershire Partnership NHS Trust,18/12/18,Nurse - Band 6 -Agency,Mental Health Triage Team,HCL NURSING,MAN28961,350.03
Department of Health,Leicestershire Partnership NHS Trust,18/12/18,NURSE - BAND 2 - AGENCY,Mill Lodge,HCL NURSING,MAN28961,176.94
Department of Health,Leicestershire Partnership NHS Trust,18/12/18,NURSE - BAND 5 - AGENCY,Mill Lodge,HCL NURSING,MAN28961,1548.11
Department of Health,Leicestershire Partnership NHS Trust,18/12/18,NURSE - BAND 2 - AGENCY,Phoenix Ward (HPC),HCL NURSING,MAN28961,168.41
Department of Health,Leicestershire Partnership NHS Trust,18/12/18,NURSE - BAND 2 - AGENCY,Place Of Safety Assessment Unit,HCL NURSING,MAN28961,220.57
Department of Health,Leicestershire Partnership NHS Trust,18/12/18,NURSE - BAND 2 - AGENCY,Thornton Ward - Bradgate Unit,HCL NURSING,MAN28961,239.57
Department of Health,Leicestershire Partnership NHS Trust,18/12/18,NURSE - BAND 2 - AGENCY,Watermead Ward (Bradgate Unit),HCL NURSING,MAN28961,182.77
Department of Health,Leicestershire Partnership NHS Trust,18/12/18,NURSE - BAND 5 - AGENCY,Watermead Ward (Bradgate Unit),HCL NURSING,MAN28961,1369.96
Department of Health,Leicestershire Partnership NHS Trust,19/12/18,Internal Printing (machines and ink),Unallocated Budgets,LEXMARK INTERNATIONAL LTD,900650005329,32002.34
Department of Health,Leicestershire Partnership NHS Trust,20/12/18,Drugs,Dementia Related Drugs and Investigations,LLOYDS PHARMACY,77666,27632.66
Department of Health,Leicestershire Partnership NHS Trust,21/12/18,WIP Project Not in BS - Information Technology,Work in Progress,DELL COMPUTERS,7402491532,28911.60
Department of Health,Leicestershire Partnership NHS Trust,21/12/18,Computer Hardware,HIS External Recharge,DELL COMPUTERS,7402483206,45000.00
Department of Health,Leicestershire Partnership NHS Trust,24/12/18,Crs_NHS_LT1y -Resus Inventory Supplied.,Balance Sheet Collection,NHS SUPPLY CHAIN (ST1450),1019190452,69327.51
Department of Health,Leicestershire Partnership NHS Trust,24/12/18,Nurse - Band 6 -Agency,Adult City East CMHT - Merlyn Vaz,HCL NURSING,MAN29043,1769.12
Department of Health,Leicestershire Partnership NHS Trust,24/12/18,Nurse - Band 6 -Agency,Adult County Charnwood CMHT - Loughborough Base,HCL NURSING,MAN29043,1069.88
Department of Health,Leicestershire Partnership NHS Trust,24/12/18,Nurse - Band 6 -Agency,Adult County North West Leicestershire CMHT,HCL NURSING,MAN29043,1283.85
Department of Health,Leicestershire Partnership NHS Trust,24/12/18,NURSE - BAND 2 - AGENCY,Agnes Unit Management,HCL NURSING,MAN29043,1076.67
Department of Health,Leicestershire Partnership NHS Trust,24/12/18,NURSE - BAND 5 - AGENCY,Agnes Unit Management,HCL NURSING,MAN29043,1398.29
Department of Health,Leicestershire Partnership NHS Trust,24/12/18,NURSE - BAND 2 - AGENCY,Aston Ward (Bradgate Unit),HCL NURSING,MAN29043,499.03
Department of Health,Leicestershire Partnership NHS Trust,24/12/18,NURSE - BAND 5 - AGENCY,Aston Ward (Bradgate Unit),HCL NURSING,MAN29043,2029.59
Department of Health,Leicestershire Partnership NHS Trust,24/12/18,NURSE - BAND 2 - AGENCY,Beaumont Ward - Bradgate Unit,HCL NURSING,MAN29043,168.41
Department of Health,Leicestershire Partnership NHS Trust,24/12/18,NURSE - BAND 5 - AGENCY,Beaumont Ward - Bradgate Unit,HCL NURSING,MAN29043,1433.04
Department of Health,Leicestershire Partnership NHS Trust,24/12/18,NURSE - BAND 2 - AGENCY,Belvoir Psychiatric Intensive Care Unit,HCL NURSING,MAN29043,2192.64
Department of Health,Leicestershire Partnership NHS Trust,24/12/18,NURSE - BAND 5 - AGENCY,Belvoir Psychiatric Intensive Care Unit,HCL NURSING,MAN29043,1773.25
Department of Health,Leicestershire Partnership NHS Trust,24/12/18,NURSE - BAND 5 - AGENCY,Bosworth Ward - Bradgate Unit,HCL NURSING,MAN29043,255.47
Department of Health,Leicestershire Partnership NHS Trust,24/12/18,Nurse - Band 6 -Agency,Crisis Resolution,HCL NURSING,MAN29043,3470.39
Department of Health,Leicestershire Partnership NHS Trust,24/12/18,Nurse - Band 6 -Agency,Deliberate Self Harm,HCL NURSING,MAN29043,4292.29
Department of Health,Leicestershire Partnership NHS Trust,24/12/18,NURSE - BAND 5 - AGENCY,Griffin Ward (HPC),HCL NURSING,MAN29043,1679.60
Department of Health,Leicestershire Partnership NHS Trust,24/12/18,NURSE - BAND 2 - AGENCY,Heather Ward,HCL NURSING,MAN29043,314.89
Department of Health,Leicestershire Partnership NHS Trust,24/12/18,NURSE - BAND 5 - AGENCY,Heather Ward,HCL NURSING,MAN29043,3624.50
Department of Health,Leicestershire Partnership NHS Trust,24/12/18,Nurse - Band 6 -Agency,Liason Psychiatry Service,HCL NURSING,MAN29043,2139.75
Department of Health,Leicestershire Partnership NHS Trust,24/12/18,NURSE - BAND 5 - AGENCY,Mill Lodge,HCL NURSING,MAN29043,329.30
Department of Health,Leicestershire Partnership NHS Trust,24/12/18,NURSE - BAND 2 - AGENCY,Phoenix Ward (HPC),HCL NURSING,MAN29043,168.41
Department of Health,Leicestershire Partnership NHS Trust,24/12/18,NURSE - BAND 5 - AGENCY,Watermead Ward (Bradgate Unit),HCL NURSING,MAN29043,800.22
Department of Health,Leicestershire Partnership NHS Trust,24/12/18,WIP Project Not in BS - Buildings excl Dwellings,Work in Progress,INTERSERVE CONSTRUCTION LTD,VEM54919,36836.40
Department of Health,Leicestershire Partnership NHS Trust,24/12/18,WIP Project Not in BS - Buildings excl Dwellings,Work in Progress,INTERSERVE CONSTRUCTION LTD,VEM54907,41753.33
